bitfinex/quotes_SOLUSD_20240606
["timestamp","ask_amount","ask_price","bid_price","bid_amount"]
[1717685557426,15.4498,173.22,173.17,2.1366]
[1717685557806,2.1361,173.21,173.17,2.1366]
[1717685558115,2.1361,173.21,173.16,8.6266]
[1717685559627,2.1362,173.2,173.16,6.49]
[1717685561709,2.306,173.22,173.17,2.1366]
[1717685562216,2.1361,173.21,173.16,8.6266]
[1717685563026,2.1362,173.2,173.15,2.1368]
[1717685563209,2.1361,173.21,173.16,8.6266]
[1717685566737,2.1361,173.21,173.17,6.49]
[1717685566936,2.306,173.22,173.17,6.49]
[1717685567139,2.306,173.22,173.17,8.6265]
[1717685567510,2.1361,173.21,173.17,6.49]
[1717685569139,2.306,173.22,173.17,8.6266]
[1717685570134,2.306,173.22,173.17,6.49]
[1717685570635,2.1361,173.21,173.16,8.6266]
[1717685571538,8.796,173.22,173.17,2.1366]
[1717685571713,8.796,173.22,173.16,8.6266]
[1717685572535,2.1361,173.21,173.16,8.6266]
[1717685574512,2.1361,173.21,173.16,2.1366]
[1717685575114,2.1363,173.2,173.15,2.1368]
[1717685575630,2.1363,173.2,173.15,8.6268]
[1717685576737,2.1363,173.2,173.15,2.1368]
[1717685577230,2.1363,173.19,173.14,8.6269]
[1717685577435,2.1363,173.2,173.15,2.1368]
[1717685577616,8.6263,173.2,173.15,2.1368]
[1717685579052,6.49,173.2,173.16,2.1367]
[1717685579534,8.6262,173.21,173.16,2.1367]
[1717685579734,2.306,173.22,173.17,2.1366]
[1717685580039,8.796,173.22,173.17,2.1366]
[1717685580443,2.1361,173.21,173.16,2.1366]
[1717685580931,2.1361,173.21,173.17,2.1366]
[1717685581136,8.796,173.22,173.17,2.1366]
[1717685581715,6.66,173.22,173.17,2.1366]
[1717685581916,2.306,173.22,173.17,2.1366]
[1717685582541,2.306,173.22,173.18,2.1364]
[1717685583033,2.306,173.22,173.17,2.1365]
[1717685583537,2.1361,173.21,173.17,2.1365]
[1717685583836,2.1361,173.21,173.16,8.6267]
[1717685584050,2.1361,173.21,173.15,6.49]
[1717685584051,2.1362,173.2,173.15,6.49]
[1717685584252,8.6262,173.2,173.15,2.1367]
[1717685584545,8.6262,173.2,173.16,2.1367]
[1717685585629,6.49,173.2,173.16,2.1367]
[1717685586055,8.6262,173.21,173.16,2.1367]
[1717685586335,0.17,173.2,173.16,2.1367]
[1717685590246,2.136,173.22,173.17,2.1366]
[1717685590443,0.34,173.21,173.17,2.1366]
[1717685591347,2.4761,173.21,173.17,2.1366]
[1717685591543,0.34,173.21,173.17,2.1366]
[1717685592047,2.4761,173.21,173.16,8.6266]
[1717685592446,2.3061,173.21,173.16,8.6266]
[1717685592622,2.1361,173.21,173.17,2.1366]
[1717685592920,6.0359,173.24,173.17,6.49]
[1717685593131,2.136,173.22,173.18,6.49]
[1717685593428,0.34,173.23,173.18,6.49]
[1717685593429,2.4759,173.23,173.18,2.1365]
[1717685593629,2.4759,173.23,173.17,8.6265]
[1717685593824,2.4759,173.23,173.18,2.1365]
[1717685594136,2.136,173.22,173.17,8.6265]
[1717685595232,2.1361,173.21,173.16,2.1366]
[1717685595753,2.1361,173.21,173.17,6.49]
[1717685596247,2.1361,173.21,173.16,2.1366]
[1717685596450,2.1361,173.21,173.17,6.49]
[1717685597154,2.136,173.22,173.17,6.49]
[1717685598152,2.1361,173.21,173.17,6.49]
[1717685598448,2.1361,173.21,173.18,6.49]
[1717685598650,0.34,173.23,173.18,6.49]
[1717685598651,2.136,173.22,173.18,6.49]
[1717685599840,0.34,173.23,173.18,6.49]
[1717685599841,2.1361,173.21,173.18,6.49]
[1717685601451,2.1361,173.21,173.16,4.44581327]
[1717685601650,2.1361,173.21,173.17,6.49]
[1717685602351,2.1361,173.21,173.16,2.1366]
[1717685602756,2.1364,173.19,173.15,6.49]
[1717685602946,2.1364,173.19,173.14,2.1369]
[1717685603139,2.1364,173.19,173.15,6.49]
[1717685603542,2.1364,173.19,173.14,2.1369]
[1717685603741,8.3178,173.19,173.14,8.6269]
[1717685603953,2.1365,173.18,173.13,2.1371]
[1717685605753,2.1365,173.18,173.13,8.6271]
[1717685606350,12.6714,173.19,173.13,8.6271]
[1717685606351,14.8078,173.19,173.14,2.1369]
[1717685606659,2.4763,173.2,173.15,2.1368]
[1717685606865,2.3063,173.2,173.15,2.1368]
[1717685607039,8.7963,173.2,173.15,2.1368]
[1717685607361,2.1363,173.2,173.15,8.6268]
[1717685607858,2.1363,173.2,173.16,2.1367]
[1717685608059,2.1363,173.2,173.15,8.6268]
[1717685608362,6.49,173.21,173.16,2.1366]
[1717685608363,8.6261,173.21,173.16,2.1366]
[1717685608756,2.306,173.22,173.17,8.6266]
[1717685609360,2.1361,173.21,173.17,6.49]
[1717685609570,2.306,173.22,173.18,6.49]
[1717685609750,2.306,173.22,173.17,8.6266]
[1717685610460,2.1361,173.21,173.17,6.49]
[1717685611664,2.1361,173.21,173.17,8.6266]
[1717685612167,2.1361,173.21,173.17,6.49]
[1717685613563,2.1362,173.2,173.15,2.1368]
[1717685613763,2.1362,173.2,173.15,8.6268]
[1717685614240,2.1362,173.2,173.1,120.0]
[1717685614241,2.1363,173.19,173.14,8.6269]
[1717685614450,14.6962,173.2,173.15,2.1368]
[1717685614649,14.6962,173.2,173.14,8.6269]
[1717685614650,2.3064,173.19,173.14,8.6269]
[1717685615164,0.17,173.19,173.15,2.1368]
[1717685617658,6.1127,173.18,173.14,2.1369]
[1717685618050,6.1127,173.18,173.14,8.6269]
[1717685619984,6.1127,173.18,173.15,2.1368]
[1717685620160,6.1127,173.18,173.14,2.1369]
[1717685621461,14.7392,173.18,173.13,2.137]
[1717685621976,6.1038,173.17,173.13,2.137]
[1717685622669,0.17,173.16,173.13,2.137]
[1717685623060,0.17,173.16,173.14,2.1369]
[1717685623258,0.17,173.16,173.12,6.49]
[1717685623259,0.17,173.16,173.13,2.137]
[1717685623678,0.17,173.16,173.12,4.25945856]
[1717685623881,0.17,173.16,173.14,2.1369]
[1717685627897,0.17,173.16,173.08,20.0]
[1717685627898,0.17,173.19,173.08,20.0]
[1717685628179,6.5204,173.21,173.14,6.49]
[1717685628180,0.34,173.2,173.14,6.49]
[1717685629064,2.4762,173.2,173.14,6.49]
[1717685632278,0.34,173.2,173.16,6.49]
[1717685632462,2.4761,173.21,173.16,6.49]
[1717685632879,2.4761,173.21,173.11,120.0]
[1717685633088,2.4761,173.21,173.16,6.49]
[1717685634489,2.1362,173.2,173.16,6.49]
[1717685634681,2.1362,173.2,173.12,45.0]
[1717685634998,2.1362,173.2,173.16,6.49]
[1717685636062,6.3541,173.2,173.09,120.0]
[1717685636260,2.1365,173.18,173.14,6.49]
[1717685638700,2.1365,173.18,173.09,120.0]
[1717685638875,2.1365,173.18,173.14,6.49]
[1717685639077,2.1365,173.18,173.13,6.49]
[1717685643674,8.9664,173.19,173.13,6.49]
[1717685643874,0.17,173.19,173.15,6.49]
[1717685644078,8.4903,173.2,173.15,6.49]
[1717685644881,2.1363,173.19,173.15,6.49]
[1717685651398,2.1365,173.18,173.11,5.772]
[1717685651704,8.7115,173.18,173.11,5.772]
[1717685651899,8.7115,173.18,173.13,6.49]
[1717685652908,8.7115,173.18,173.1,5.772]
[1717685653373,8.7115,173.18,173.12,6.49]
[1717685653593,8.7115,173.18,173.13,6.49]
[1717685654918,6.575,173.18,173.1,5.772]
[1717685655120,6.575,173.18,173.13,6.49]
[1717685655321,6.575,173.18,173.14,6.49]
[1717685655821,6.575,173.18,173.13,6.49]
[1717685656021,6.575,173.18,173.14,6.49]
[1717685657623,0.17,173.19,173.15,6.49]
[1717685657827,0.17,173.19,173.16,6.49]
[1717685658025,2.3062,173.21,173.16,6.49]
[1717685658026,2.4762,173.2,173.16,6.49]
[1717685658827,0.34,173.2,173.16,6.49]
[1717685659310,6.4867,173.21,173.16,6.49]
[1717685659708,2.1363,173.2,173.16,6.49]
[1717685659913,0.17,173.19,173.16,6.49]
[1717685662326,2.3063,173.19,173.16,6.49]
[1717685662906,2.3063,173.19,173.15,6.49]
[1717685663909,2.1366,173.17,173.14,6.49]
[1717685664105,2.1365,173.18,173.13,6.49]
[1717685664414,2.1366,173.17,173.1,5.774]
[1717685664624,2.1366,173.17,173.13,6.49]
[1717685665230,2.1365,173.18,173.1,5.774]
[1717685665434,8.4613,173.18,173.13,6.49]
[1717685666527,8.4613,173.18,173.1,5.774]
[1717685666838,8.4613,173.18,173.09,120.0]
[1717685666839,8.4613,173.18,173.13,6.49]
[1717685669043,2.4764,173.19,173.14,6.49]
[1717685669240,2.4764,173.19,173.15,6.49]
[1717685669241,2.1364,173.19,173.15,6.49]
[1717685671052,2.1365,173.18,173.09,120.0]
[1717685671336,2.1365,173.18,173.14,6.49]
[1717685671551,8.5423,173.18,173.14,6.49]
[1717685671714,2.1366,173.17,173.1,5.774]
[1717685671918,2.1366,173.17,173.08,20.0]
[1717685672141,2.1366,173.17,173.13,6.49]
[1717685673128,8.5423,173.18,173.13,6.49]
[1717685674719,6.4058,173.18,173.13,6.49]
[1717685675040,8.5423,173.18,173.13,6.49]
[1717685676654,8.5423,173.18,173.14,6.49]
[1717685677326,6.4058,173.18,173.14,6.49]
[1717685677839,2.4764,173.19,173.14,6.49]
[1717685678040,2.1364,173.19,173.15,6.49]
[1717685678244,2.1363,173.2,173.15,6.49]
[1717685678446,8.4391,173.2,173.15,6.49]
[1717685679547,9.0303,173.21,173.1,125.774]
[1717685679761,9.0303,173.21,173.18,6.49]
[1717685679762,0.17,173.2,173.18,6.49]
[1717685680041,2.136,173.22,173.18,6.49]
[1717685680947,2.1361,173.21,173.19,6.49]
[1717685681126,2.1361,173.21,173.18,6.49]
[1717685684249,2.1362,173.2,173.18,6.49]
[1717685684852,4.4418,173.23,173.18,6.49]
[1717685684853,2.1361,173.21,173.18,6.49]
[1717685685240,2.1361,173.21,173.13,5.774]
[1717685685443,2.1361,173.21,173.18,6.49]
[1717685688168,2.1361,173.21,173.13,5.774]
[1717685688357,2.1361,173.21,173.18,6.49]
[1717685688558,4.4418,173.23,173.18,6.49]
[1717685688742,2.1363,173.2,173.12,120.0]
[1717685689072,2.1363,173.2,173.16,6.49]
[1717685689434,2.1363,173.2,173.12,125.774]
[1717685689659,2.1363,173.2,173.16,6.49]
[1717685690075,2.1363,173.2,173.12,125.774]
[1717685690231,2.1363,173.2,173.16,6.49]
[1717685694469,2.1363,173.2,173.12,125.774]
[1717685694656,2.1363,173.2,173.16,6.49]
[1717685694855,2.1363,173.2,173.12,125.774]
[1717685695056,2.1363,173.19,173.16,6.49]
[1717685695566,2.1363,173.2,173.16,6.49]
[1717685696860,8.6722,173.22,173.16,6.49]
[1717685697064,6.5361,173.22,173.18,6.49]
[1717685697249,8.6722,173.22,173.18,6.49]
[1717685697949,2.1361,173.21,173.18,6.49]
[1717685699657,2.1361,173.21,173.17,6.49]
[1717685701176,2.1361,173.21,173.12,120.0]
[1717685701374,6.5361,173.22,173.13,45.0]
[1717685701375,2.1362,173.2,173.13,45.0]
[1717685701558,2.1362,173.2,173.16,6.49]
[1717685701758,2.1362,173.2,173.13,45.0]
[1717685702271,2.1362,173.2,173.16,6.49]
[1717685702663,2.1362,173.2,173.15,6.49]
[1717685702865,2.1362,173.2,173.12,120.0]
[1717685703084,2.1362,173.2,173.15,6.49]
[1717685703663,8.3029,173.2,173.15,6.49]
[1717685704173,6.1667,173.2,173.15,6.49]
[1717685704370,8.3029,173.2,173.15,6.49]
[1717685704583,8.3029,173.2,173.12,120.0]
[1717685704758,8.3029,173.2,173.16,6.49]
[1717685708160,6.1667,173.2,173.16,6.49]
[1717685708362,8.303,173.2,173.16,6.49]
[1717685710357,8.303,173.2,173.12,120.0]
[1717685710570,8.303,173.2,173.15,6.49]
[1717685711276,8.5133,173.19,173.1,120.0]
[1717685711470,8.5133,173.19,173.13,6.49]
[1717685712382,6.377,173.19,173.11,5.774]
[1717685712579,8.5133,173.19,173.14,6.49]
[1717685714286,8.5133,173.19,173.11,5.774]
[1717685714486,15.0033,173.19,173.13,6.49]
[1717685715587,12.867,173.19,173.13,6.49]
[1717685715884,12.867,173.19,173.08,140.0]
[1717685716084,12.867,173.19,173.13,6.49]
[1717685717690,0.17,173.18,173.08,140.0]
[1717685717867,0.34,173.18,173.08,20.0]
[1717685718071,6.49,173.17,173.06,140.0]
[1717685718378,6.6625,173.16,173.1,6.49]
[1717685718579,6.6625,173.16,173.08,120.0]
[1717685718766,6.6625,173.16,173.13,6.49]
[1717685719885,8.1821,173.18,173.13,6.49]
[1717685720087,0.17,173.17,173.13,6.49]
[1717685720974,8.1821,173.18,173.13,6.49]
[1717685721176,6.0456,173.18,173.13,6.49]
[1717685721379,6.0456,173.18,173.14,6.49]
[1717685722092,2.4764,173.19,173.14,6.49]
[1717685723272,2.1365,173.18,173.14,6.49]
[1717685723588,2.1365,173.18,173.13,6.49]
[1717685725081,8.7271,173.18,173.13,6.49]
[1717685725287,2.1366,173.17,173.08,120.0]
[1717685725596,2.1366,173.17,173.13,6.49]
[1717685725777,8.7271,173.18,173.13,6.49]
[1717685727619,6.6047,173.17,173.12,6.49]
[1717685728201,6.6047,173.17,173.09,45.0]
[1717685728389,6.6047,173.17,173.12,6.49]
[1717685732105,6.6047,173.17,173.13,6.49]
[1717685735276,6.6047,173.17,173.09,45.0]
[1717685735607,6.6047,173.17,173.13,6.49]
[1717685736088,8.7413,173.17,173.08,120.0]
[1717685736284,6.7614,173.16,173.12,6.49]
[1717685736681,2.1365,173.18,173.12,6.49]
[1717685736883,0.17,173.17,173.12,6.49]
[1717685737405,2.4765,173.18,173.12,6.49]
[1717685737999,0.34,173.18,173.12,6.49]
[1717685738811,8.8436,173.18,173.13,6.49]
[1717685739511,6.7071,173.18,173.14,6.49]
[1717685740288,6.7071,173.18,173.13,6.49]
[1717685740499,8.8436,173.18,173.13,6.49]
[1717685741498,6.6542,173.17,173.12,6.49]
[1717685744408,0.17,173.18,173.14,6.49]
[1717685744702,2.1361,173.21,173.13,120.0]
[1717685744888,2.1361,173.21,173.16,6.49]
[1717685745095,8.626,173.22,173.16,6.49]
[1717685745600,2.1361,173.21,173.16,6.49]
[1717685746696,2.1361,173.21,173.13,120.0]
[1717685747011,2.1361,173.21,173.16,6.49]
[1717685747495,8.5192,173.21,173.16,6.49]
[1717685747804,6.3831,173.21,173.16,6.49]
[1717685748808,8.5192,173.21,173.16,6.49]
[1717685749909,8.5192,173.21,173.13,120.0]
[1717685750508,8.5192,173.21,173.16,6.49]
[1717685751205,2.1362,173.2,173.13,120.0]
[1717685751411,2.1362,173.2,173.16,6.49]
[1717685752513,8.5192,173.21,173.16,6.49]
[1717685753607,8.5192,173.21,173.13,120.0]
[1717685753608,8.5192,173.21,173.17,6.49]
[1717685754803,8.5192,173.21,173.13,120.0]
[1717685755112,8.5192,173.21,173.17,6.49]
[1717685756307,6.3831,173.21,173.17,6.49]
[1717685756512,2.136,173.22,173.18,6.49]
[1717685756701,2.1359,173.23,173.19,6.49]
[1717685756904,2.1359,173.23,173.13,120.0]
[1717685757115,2.1359,173.23,173.18,6.49]
[1717685757715,2.136,173.22,173.18,6.49]
[1717685758706,2.1359,173.23,173.18,6.49]
[1717685761109,8.3768,173.23,173.15,120.0]
[1717685761316,2.136,173.22,173.18,6.49]
[1717685762125,8.3768,173.23,173.18,6.49]
[1717685762618,2.1359,173.23,173.19,6.49]
[1717685763416,2.136,173.22,173.14,45.0]
[1717685763622,2.136,173.22,173.18,6.49]
[1717685765713,2.1359,173.23,173.18,6.49]
[1717685765928,2.136,173.22,173.18,6.49]
[1717685766217,2.136,173.22,173.14,45.0]
[1717685766428,2.136,173.22,173.18,6.49]
[1717685766622,2.136,173.22,173.14,45.0]
[1717685766827,2.136,173.22,173.18,6.49]
[1717685767138,6.6061,173.23,173.18,6.49]
[1717685767432,2.136,173.22,173.18,6.49]
[1717685768413,2.136,173.22,173.14,45.0]
[1717685768735,8.2882,173.22,173.18,6.49]
[1717685768911,8.2882,173.22,173.17,6.49]
[1717685769833,8.2882,173.22,173.14,45.0]
[1717685770130,8.2882,173.22,173.13,120.0]
[1717685770318,14.7782,173.22,173.16,6.49]
[1717685771514,0.17,173.21,173.11,120.0]
[1717685771828,2.1363,173.2,173.14,6.49]
[1717685772009,8.6263,173.2,173.14,6.49]
[1717685773525,8.6263,173.2,173.09,126.3015]
[1717685773827,8.6263,173.2,173.14,6.49]
[1717685774329,8.6263,173.2,173.1,20.0]
[1717685774637,8.6263,173.2,173.14,6.49]
[1717685774813,2.1363,173.2,173.15,6.49]
[1717685775014,8.9661,173.21,173.15,6.49]
[1717685775220,2.4761,173.21,173.15,6.49]
[1717685775424,2.4761,173.21,173.16,6.49]
[1717685775425,8.9661,173.21,173.16,6.49]
[1717685775628,6.1196,173.2,173.16,6.49]
[1717685779330,8.2558,173.2,173.16,6.49]
[1717685779534,6.1965,173.19,173.15,6.49]
[1717685779711,8.3328,173.19,173.1,20.0]
[1717685779912,8.3328,173.19,173.14,6.49]
[1717685781733,8.3328,173.19,173.1,20.0]
[1717685781934,8.3328,173.19,173.14,6.49]
[1717685782127,8.3328,173.19,173.1,20.0]
[1717685782315,8.3328,173.19,173.14,6.49]
[1717685783035,6.1965,173.19,173.14,6.49]
[1717685784232,14.8229,173.19,173.1,20.0]
[1717685784431,14.8229,173.19,173.13,6.49]
[1717685785442,12.6865,173.19,173.13,6.49]
[1717685785634,12.6865,173.19,173.1,120.0]
[1717685785830,6.1965,173.19,173.13,6.49]
[1717685786229,6.1965,173.19,173.14,6.49]
[1717685786538,14.7823,173.2,173.14,6.49]
[1717685786743,6.156,173.18,173.14,6.49]
[1717685788230,6.156,173.18,173.1,120.0]
[1717685788432,6.156,173.18,173.14,6.49]
[1717685788627,17.5732,173.21,173.16,6.49]
[1717685788826,6.7092,173.2,173.16,6.49]
[1717685790124,8.8454,173.2,173.16,6.49]
[1717685790321,8.8454,173.2,173.15,6.49]
[1717685790934,8.8454,173.2,173.1,120.0]
[1717685791122,8.8454,173.2,173.15,6.49]
[1717685792731,8.1551,173.19,173.15,6.49]
[1717685792932,6.0187,173.19,173.15,6.49]
[1717685794628,8.155,173.19,173.14,6.49]
[1717685795147,8.155,173.19,173.15,6.49]
[1717685795541,8.155,173.19,173.1,120.0]
[1717685795722,8.155,173.19,173.15,6.49]
[1717685796124,6.0187,173.19,173.15,6.49]
[1717685800353,8.1551,173.19,173.15,6.49]
[1717685800853,8.1551,173.19,173.1,120.0]
[1717685801053,8.1551,173.19,173.15,6.49]
[1717685802764,6.0187,173.19,173.16,6.49]
[1717685802933,6.0187,173.19,173.15,6.49]
[1717685803439,2.1361,173.21,173.16,6.49]
[1717685803638,6.4807,173.21,173.17,6.49]
[1717685804568,6.4807,173.21,173.18,6.49]
[1717685806580,21.5319,173.25,173.18,6.49]
[1717685806756,8.7179,173.25,173.2,6.49]
[1717685807259,6.5822,173.23,173.2,6.49]
[1717685807448,6.5822,173.23,173.16,120.0]
[1717685807449,6.5822,173.23,173.19,6.49]
[1717685807656,6.5822,173.23,173.16,120.0]
[1717685807872,8.718,173.23,173.19,6.49]
[1717685808057,8.718,173.23,173.18,6.49]
[1717685808058,6.5822,173.23,173.18,6.49]
[1717685808258,6.5822,173.23,173.19,6.49]
[1717685809177,8.7181,173.23,173.18,6.49]
[1717685809380,6.5822,173.23,173.18,6.49]
[1717685812675,6.0944,173.22,173.14,120.0]
[1717685812867,6.0944,173.22,173.17,6.49]
[1717685817049,6.0944,173.22,173.18,6.49]
[1717685817866,8.6256,173.25,173.18,6.49]
[1717685818173,6.7423,173.24,173.19,6.49]
[1717685818878,8.8781,173.24,173.19,6.49]
[1717685819174,8.8781,173.24,173.18,6.49]
[1717685827979,8.6259,173.23,173.14,120.0]
[1717685828183,2.136,173.22,173.14,120.0]
[1717685828483,2.136,173.22,173.16,6.49]
[1717685829065,8.6259,173.23,173.16,6.49]
[1717685829566,8.6259,173.23,173.14,120.0]
[1717685829766,8.6259,173.23,173.16,6.49]
[1717685830985,6.49,173.23,173.16,6.49]
[1717685831687,6.49,173.23,173.14,120.0]
[1717685831879,6.49,173.23,173.16,6.49]
[1717685832482,6.49,173.22,173.16,6.49]
[1717685833186,8.6258,173.23,173.16,6.49]
[1717685833584,6.49,173.23,173.16,6.49]
[1717685834891,6.49,173.23,173.17,6.49]
[1717685837693,6.49,173.23,173.14,120.0]
[1717685838000,6.49,173.23,173.16,6.49]
[1717685838895,6.49,173.23,173.14,120.0]
[1717685839086,6.49,173.23,173.16,6.49]
[1717685839479,6.49,173.23,173.17,6.49]
[1717685840183,6.49,173.23,173.14,120.0]
[1717685840392,6.49,173.23,173.17,6.49]
[1717685840875,6.49,173.23,173.14,120.0]
[1717685841075,6.49,173.23,173.17,6.49]
[1717685843799,6.7423,173.24,173.17,6.49]
[1717685843993,6.49,173.23,173.17,6.49]
[1717685845101,8.6259,173.23,173.14,120.0]
[1717685845602,8.626,173.22,173.15,6.49]
[1717685846089,8.626,173.22,173.12,120.0]
[1717685846286,8.6261,173.21,173.14,6.49]
[1717685846584,8.6261,173.21,173.08,5.774]
[1717685846585,14.8655,173.19,173.12,6.49]
[1717685847002,6.49,173.18,173.12,6.49]
[1717685847481,14.8655,173.19,173.12,6.49]
[1717685848182,14.8655,173.19,173.13,6.49]
[1717685849587,2.1365,173.18,173.13,6.49]
[1717685849893,6.3348,173.17,173.13,6.49]
[1717685850802,6.3348,173.17,173.08,125.774]
[1717685851186,6.3348,173.17,173.13,6.49]
[1717685852293,6.3348,173.17,173.14,6.49]
[1717685852490,8.4621,173.19,173.15,6.49]
[1717685852712,6.3257,173.19,173.15,6.49]
[1717685853101,8.4621,173.19,173.15,6.49]
[1717685854689,2.1365,173.18,173.1,120.0]
[1717685854889,8.2148,173.18,173.14,6.49]
[1717685855507,8.2148,173.18,173.13,6.49]
[1717685856204,8.2148,173.18,173.1,120.0]
[1717685856408,6.0783,173.17,173.13,6.49]
[1717685857903,6.0783,173.17,173.1,120.0]
[1717685858104,6.0783,173.17,173.13,6.49]
[1717685859510,6.0783,173.17,173.1,120.0]
[1717685859710,6.0783,173.17,173.13,6.49]
[1717685860414,6.0783,173.17,173.1,120.0]
[1717685860608,2.1366,173.17,173.07,145.96]
[1717685860909,6.3318,173.16,173.12,6.49]
[1717685861301,6.3318,173.16,173.11,6.49]
[1717685861502,6.3318,173.16,173.12,6.49]
[1717685862113,6.3318,173.16,173.07,145.96]
[1717685862418,6.3318,173.16,173.12,6.49]
[1717685865909,6.6456,173.2,173.11,120.0]
[1717685866218,2.136,173.22,173.11,120.0]
[1717685866399,8.2325,173.22,173.17,6.49]
[1717685867614,6.3193,173.22,173.18,6.49]
[1717685868114,6.3193,173.22,173.14,120.0]
[1717685868115,6.3193,173.22,173.19,6.49]
[1717685868307,2.1357,173.24,173.19,6.49]
[1717685868503,6.5372,173.24,173.17,120.0]
[1717685868721,6.5372,173.26,173.21,6.49]
[1717685869414,8.6727,173.26,173.21,6.49]
[1717685870315,2.1356,173.25,173.21,6.49]
[1717685870705,8.5404,173.25,173.21,6.49]
[1717685871921,8.5404,173.25,173.2,6.49]
[1717685875435,8.5404,173.25,173.15,120.0]
[1717685875602,8.5404,173.25,173.2,6.49]
[1717685877120,8.2865,173.24,173.15,120.0]
[1717685877419,8.2865,173.24,173.19,6.49]
[1717685877605,6.1508,173.24,173.19,6.49]
[1717685878414,8.6554,173.25,173.17,120.0]
[1717685879210,8.6554,173.25,173.21,6.49]
[1717685879532,8.6554,173.25,173.17,120.0]
[1717685880532,8.6554,173.25,173.16,25.96]
[1717685880833,6.5197,173.25,173.16,25.96]
[1717685881125,6.5197,173.25,173.2,6.49]
[1717685881327,8.6553,173.25,173.2,6.49]
[1717685881633,8.6553,173.25,173.15,120.0]
[1717685881930,6.4028,173.24,173.2,6.49]
[1717685882834,6.4028,173.24,173.19,6.49]
[1717685884541,8.5386,173.24,173.15,120.0]
[1717685884831,15.0286,173.24,173.18,6.49]
[1717685885208,6.4965,173.23,173.19,6.49]
[1717685885908,8.6324,173.23,173.18,6.49]
[1717685886514,6.4965,173.23,173.18,6.49]
[1717685887133,6.4965,173.23,173.15,120.0]
[1717685887332,6.4965,173.23,173.18,6.49]
[1717685887561,2.1358,173.23,173.18,6.49]
[1717685887840,14.7827,173.23,173.17,6.49]
[1717685888036,14.7827,173.23,173.13,120.0]
[1717685888341,14.7827,173.23,173.17,6.49]
[1717685889838,6.49,173.21,173.1,6.2321]
[1717685890042,2.1362,173.2,173.15,6.49]
[1717685890338,14.7399,173.21,173.15,6.49]
[1717685894060,8.2499,173.21,173.15,6.49]
[1717685894349,6.2285,173.2,173.16,6.49]
[1717685896551,6.2285,173.2,173.1,120.0]
[1717685896736,2.306,173.22,173.17,6.49]
[1717685896940,8.6109,173.22,173.17,6.49]